Cogmind - Beta 14 @@@ ROGUE MODE // 2025.04.13 @ 19:52:07 Player: Prakos Result: Destroyed by G-47 Trooper with Particle Gun Performance ------------- Evolutions (1) 500 Regions Visited (5) 1000 Robots Destroyed (54) 270 Value Destroyed (1743) 1743 Prototype IDs (25) 500 Alien Tech Used (0) 0 Bonus (328) 328 TOTAL SCORE: 4341 Bonus ------- High Alert Combat Kills 28 Aligned with FarCom 300 Cogmind --------- Core Integrity 0/400 Matter 113/300 Energy 99/100 System Corruption 4% Temperature Cool (9) Movement Treading (160) Location -8/Mines Parts ------- > --- POWER (1) -------- (None) > --- PROPULSION (4) --- Light Treads Light Treads Improved Treads > --- UTILITY (2) ------ Large Storage Unit > --- WEAPON (2) ------- (None) > --- INVENTORY (15) --- Improved Ion Engine Improved Ion Engine Light Nuclear Core Light Treads Huge Storage Unit Structural Scanner Modified TNC Hacking Suite Datajack Peak State ------------ > --- POWER ------------ Heavy Ion Engine > --- PROPULSION ------- Light Treads Light Treads Light Treads Light Treads > --- UTILITY ---------- Heat Sink Large Storage Unit > --- WEAPON ----------- Beam Rifle Improved Assault Rifle > --- INVENTORY -------- Improved Ion Engine Light Nuclear Core Light Treads Light Treads Light Treads Light Treads Improved Treads Huge Storage Unit Structural Scanner Shield Generator Hacking Suite Beam Rifle Datajack [Rating: 16] Favorites ----------- Power Heavy Ion Engine Engine Heavy Ion Engine Propulsion Light Treads Treads Light Treads Utility Heat Sink Device Heat Sink Storage Large Storage Unit Protection Hardened Light Armor Plating Weapon Beam Rifle Energy Gun Beam Rifle Ballistic Gun Improved Assault Rifle Launcher Rocket Launcher Build | -11 -10 -9 -9 -9 -8 ------- Run | Yrd Mat Mat Min Exi Min Slots Evolved 2 | . . 2 . . . Power . | . . . . . . Propulsion 2 | . . 2 . . . Utility . | . . . . . . Weapon . | . . . . . . Parts Attached 43 | 6 12 14 1 10 . Power 6 | 1 2 3 . . . Engine 6 | 1 2 3 . . . Core . | . . . . . . Reactor . | . . . . . . Propulsion 17 | 2 3 5 1 6 . Treads 17 | 2 3 5 1 6 . Leg . | . . . . . . Wheel . | . . . . . . Hover . | . . . . . . Flight . | . . . . . . Utility 7 | 1 4 2 . . . Device 2 | . 1 1 . . . Storage 2 | 1 . 1 . . . Processor . | . . . . . . Hackware . | . . . . . . Protection 3 | . 3 . . . . Artifact . | . . . . . . Weapon 13 | 2 3 4 . 4 . Energy Gun 2 | . . 1 . 1 . Energy Cannon . | . . . . . . Ballistic Gun 10 | 2 3 3 . 2 . Ballistic Cannon . | . . . . . . Launcher 1 | . . . . 1 . Special Weapon . | . . . . . . Impact Weapon . | . . . . . . Slashing Weapon . | . . . . . . Piercing Weapon . | . . . . . . Special Melee Weapon . | . . . . . . Unidentified Prototypes 2 | . . 2 . . . Parts Lost 13 | . . 1 . 12 . Power 1 | . . . . 1 . Propulsion 6 | . . 1 . 5 . Utility 1 | . . . . 1 . Weapon 5 | . . . . 5 . Highest Loss Streak 11 | . . 1 . 11 . To Critical Strikes . | . . . . . . Average Slot Usage (%) 94 | . 94 94 100 90 44 Engine 10 | . 13 11 11 9 . Treads 38 | . 26 39 44 40 33 Device 7 | . 2 7 11 9 . Storage 11 | . 14 11 11 11 11 Protection 2 | . 9 3 . . . Energy Gun 8 | . . 9 11 9 . Ballistic Gun 12 | . 27 12 11 5 . Launcher 1 | . . . . 4 . Peak Build Rating 16 | 6 8 16 16 16 7 Average Rating 13 | 4 7 13 16 14 7 On Entrance 8 | . 6 8 16 16 7 Naked Turns . | . . . . . . Heaviest Build 36 | 10 17 35 35 36 20 Greatest Support 83 | 40 40 80 80 83 63 Greatest Overweight (x) 1 | . . . . 1 . Average Overweight (x) . | . . . . . . Largest Inventory Capacity 15 | 8 8 15 15 15 15 Average Capacity 12 | 7 8 11 15 15 15 Most Carried 15 | . 5 15 15 15 9 Average Carried 10 | . 3 9 14 14 9 Final Capacity 15 | 8 8 15 15 15 15 Final Carried 15 | . 5 15 15 9 9 Class Distribution -------------------- 70% | Scavenger-Mutant 29% | Mutant Dominant Class ---------------- Mutant | -10/Materials Scavenger-Mutant | -9/Materials Scavenger-Mutant | -9/Mines Scavenger-Mutant | -9/Exiles Mutant | -8/Mines Resources | -11 -10 -9 -9 -9 -8 ----------- Run | Yrd Mat Mat Min Exi Min Matter Collected 802 | 195 130 419 32 26 . Remotely . | . . . . . . Salvage Created 1774 | . 63 1140 42 529 . Parts 104 | . 3 73 2 26 . Haulers Intercepted 2 | . . 2 . . . Recyclers Shooed 3 | . . 3 . . . Parts Field Recycled . | . . . . . . Retrieved Matter . | . . . . . . Parts Self-Destructed . | . . . . . . Prevented . | . . . . . . Kills | -11 -10 -9 -9 -9 -8 ------- Run | Yrd Mat Mat Min Exi Min Combat Hostiles Destroyed 43 | . 1 22 . 20 . Guns 30 | . 1 22 . 7 . AOE 13 | . . . . 13 . Classes Destroyed 11 | . 2 6 . 3 . Worker 1 | . . 1 . . . Hauler 2 | . . 2 . . . Recycler 2 | . . 2 . . . Operator 2 | . 1 1 . . . Watcher 4 | . . 4 . . . Swarmer 7 | . . 7 . . . Grunt 18 | . 1 8 . 9 . Brawler 2 | . . . . 2 . Sentry 7 | . . 7 . . . Hunter 5 | . . . . 5 . Programmer 4 | . . . . 4 . Best Kill Streak 20 | . 1 11 . 20 . Combat Bots Only 20 | . 1 6 . 20 . Max Kills in Single Turn 3 | . 1 2 . 3 . Gunslinging . | . . . . . . Exploded 3 | . . . . 3 . Melee . | . . . . . . Uniques/NPCs Destroyed . | . . . . . . Combat | -11 -10 -9 -9 -9 -8 -------- Run | Yrd Mat Mat Min Exi Min Hostile Shots Fired 229 | . 4 80 . 137 8 Missed 68 | . 2 26 . 39 1 Damage Taken 2286 | . 21 656 . 1492 117 Core 401 | . . 98 . 286 17 Absorbed by Shields . | . . . . . . Core Remaining (%) 100 | 100 100 . . . . Volleys Fired 120 | . 12 80 2 26 . Largest 2 | . 2 2 2 2 . Hottest 89 | . 40 79 79 89 . Shots Fired 227 | . 24 158 4 41 . Gun 216 | . 24 158 4 30 . Cannon . | . . . . . . Launcher 11 | . . . . 11 . Special . | . . . . . . Kinetic 126 | . 24 85 2 15 . Thermal 90 | . . 73 2 15 . Explosive 11 | . . . . 11 . Electromagnetic . | . . . . . . Robot Hit Streak 14 | . 6 14 2 6 . Robot Miss Streak 4 | . 3 4 1 4 . Penetration Max . | . . . . . . Secondary Targets 2 | . . 1 . 1 . Max Gunslinging Chain 1 | . . 1 . 1 . Shots Hit Robots 159 | . 15 115 2 27 . Core Hits 98 | . 5 49 1 43 . Critical Kills 1 | . . 1 . . . Critical Parts Destroyed . | . . . . . . Critical Strikes 15 | . . 12 . 3 . Burn 14 | . . 11 . 3 . Destroy 1 | . . 1 . . . Melee Attacks . | . . . . . . Impact . | . . . . . . Slashing . | . . . . . . Piercing . | . . . . . . Sneak Attacks . | . . . . . . Combat Hostiles . | . . . . . . Follow-up Attacks . | . . . . . . Damage Inflicted 3423 | . 126 1629 48 1620 . Guns 2168 | . 123 1625 48 372 . Cannons . | . . . . . . Explosions 1248 | . . . . 1248 . Melee . | . . . . . . Ramming 7 | . 3 4 . . . Kinetic 1241 | . 123 873 33 212 . Thermal 927 | . . 752 15 160 . Explosive 1248 | . . . . 1248 . Electromagnetic . | . . . . . . Impact . | . . . . . . Slashing . | . . . . . . Piercing . | . . . . . . Highest Corruption 4 | . . . . 4 4 Average Corruption 2 | . . . . 2 4 Corruption Purged . | . . . . . . Corruption Blocked . | . . . . . . Effects 3 | . . . . 3 . Message Errors 1 | . . . . 1 . Heat Flow Errors 2 | . . . . 2 . Overload Shots . | . . . . . . Overflow Damage 4 | . . . . 4 . Projectiles . | . . . . . . Explosions 4 | . . . . 4 . Melee . | . . . . . . Knockbacks . | . . . . . . Impact . | . . . . . . Kinetic . | . . . . . . Secondary . | . . . . . . Self-Inflicted Damage 14 | . . . . 14 . Shots 1 | . . . . 1 . Rammed 3 | . 1 2 . . . Targets Rammed 3 | . 1 2 . . . Kicked . | . . . . . . Crushed . | . . . . . . Highest Temperature 306 | . 27 306 . 220 . Average Temperature 94 | . 10 122 . 58 . Received Heat Transfer 414 | . 12 315 . 24 63 Siege Activations . | . . . . . . Robots Corrupted . | . . . . . . Combat Hostiles . | . . . . . . Parts Fried . | . . . . . . Impact Corruptions . | . . . . . . Robots Melted . | . . . . . . Combat Hostiles . | . . . . . . Parts Melted 4 | . . 4 . . . Heat Transferred 3404 | . . 2738 37 629 . Parts Sabotaged . | . . . . . . Parts Stolen . | . . . . . . Parts Stripped . | . . . . . . Power Chain Reactions . | . . . . . . Alert | -11 -10 -9 -9 -9 -8 ------- Run | Yrd Mat Mat Min Exi Min Peak Influence 613 | . 35 613 243 . . Initial 238 | . . 14 238 . . Average 169 | . 23 217 242 . . Maximum Alert Level 2 | . . 2 1 . . Low Security (%) 52 | 100 100 47 . . 100 Level 1 40 | . . 40 100 . . Level 2 6 | . . 12 . . . Level 3 . | . . . . . . Level 4 . | . . . . . . Level 5 . | . . . . . . High Security . | . . . . . . Max Security . | . . . . . . Squads Dispatched 3 | . 1 2 . . . Investigation . | . . . . . . Extermination . | . . . . . . Reinforcement 3 | . 1 2 . . . Assault . | . . . . . . Garrison . | . . . . . . Intercept . | . . . . . . Searches Triggered . | . . . . . . Construction Impeded . | . . . . . . Haulers Reinforced . | . . . . . . Active Scanning Responses . | . . . . . . Cargo Convoy Interrupts . | . . . . . . Stealth | -11 -10 -9 -9 -9 -8 --------- Run | Yrd Mat Mat Min Exi Min Distress Signals 5 | . . 5 . . . Communications Jammed . | . . . . . . Distress Signals . | . . . . . . Times Spotted 67 | . 6 35 . 23 3 Peak Tracking Total 11 | . 1 7 . 11 3 Tactical Retreats 4 | . . 4 . . . Traps | -11 -10 -9 -9 -9 -8 ------- Run | Yrd Mat Mat Min Exi Min Traps Triggered 4 | . 4 . . . . Indirectly . | . . . . . . Trap Hack Attempts . | . . . . . . Triggered . | . . . . . . Disarmed . | . . . . . . Reprogrammed . | . . . . . . Reused . | . . . . . . Traps Extracted . | . . . . . . Installed . | . . . . . . Triggered . | . . . . . . Machines | -11 -10 -9 -9 -9 -8 ---------- Run | Yrd Mat Mat Min Exi Min Machines Disabled 5 | . . 2 . 3 . Max in Single Turn 1 | . . 1 . 1 . Machines Repaired . | . . . . . . Machines Dismantled . | . . . . . . Machines Sabotaged . | . . . . . . Overloaded Fab Kills . | . . . . . . Hacking | -11 -10 -9 -9 -9 -8 --------- Run | Yrd Mat Mat Min Exi Min Machines Accessed 5 | . 1 3 . 1 . Terminals 4 | . 1 3 . . . Fabricators . | . . . . . . Repair Stations . | . . . . . . Recycling Units . | . . . . . . Scanalyzers . | . . . . . . Garrison Access . | . . . . . . Total Hacks 12 | . 4 7 . 1 . Successful 5 | . 2 2 . 1 . Failed 7 | . 2 5 . . . Catastrophic 2 | . . 2 . . . Database Lockouts . | . . . . . . Manual 11 | . 3 7 . 1 . Terminals 11 | . 4 7 . . . Fabricators . | . . . . . . Repair Stations . | . . . . . . Recycling Units . | . . . . . . Scanalyzers . | . . . . . . Garrison Access . | . . . . . . Terminal Hacks 2 | . 1 . . 1 . Locate Traps 1 | . 1 . . . . Derelict Proto ID Bank 1 | . . . . 1 . Fabricator Hacks . | . . . . . . Repair Station Hacks . | . . . . . . Recycling Unit Hacks . | . . . . . . Scanalyzer . | . . . . . . Garrison Access Hacks . | . . . . . . Unauthorized Hacks 3 | . 1 2 . . . Terminals 3 | . 1 2 . . . Botnet 3 | . 1 2 . . . Fabricators . | . . . . . . Repair Stations . | . . . . . . Recycling Units . | . . . . . . Scanalyzers . | . . . . . . Garrison Access . | . . . . . . Data Cores Recovered . | . . . . . . Used . | . . . . . . Hacking Detections 4 | . 1 3 . . . Full Trace Events . | . . . . . . Feedback Events . | . . . . . . Feedback Blocked . | . . . . . . Robot Schematics Acquired . | . . . . . . Robots Built . | . . . . . . Authchips . | . . . . . . Time . | . . . . . . Total Robot Build Rating . | . . . . . . Part Schematics Acquired . | . . . . . . Parts Built . | . . . . . . Authchips . | . . . . . . Time . | . . . . . . Total Part Build Rating . | . . . . . . Parts Repaired . | . . . . . . Time . | . . . . . . Parts Recycled . | . . . . . . Recycled Matter . | . . . . . . Retrieved Matter . | . . . . . . Retrieved Components . | . . . . . . Parts Scanalyzed . | . . . . . . Part Schematics Acquired . | . . . . . . Parts Damaged . | . . . . . . Bothacking | -11 -10 -9 -9 -9 -8 ------------ Run | Yrd Mat Mat Min Exi Min Used RIF Installer . | . . . . . . Robots Hacked . | . . . . . . Non-combat . | . . . . . . Combat . | . . . . . . Robot Hacks Applied . | . . . . . . Relay Couplers Released . | . . . . . . Fabnet Peak Effective % . | . . . . . . Robots Rewired . | . . . . . . Allies Hacked . | . . . . . . Hacks Repelled . | . . . . . . Allies | -11 -10 -9 -9 -9 -8 -------- Run | Yrd Mat Mat Min Exi Min Total Allies . | . . . . . . Largest Group . | . . . . . . Highest-Rated Group . | . . . . . . Highest-Rated Ally . | . . . . . . Total Orders . | . . . . . . Ally Attacks . | . . . . . . Total Damage . | . . . . . . Kills . | . . . . . . Allies Corrupted . | . . . . . . Allies Melted . | . . . . . . Intel | -11 -10 -9 -9 -9 -8 ------- Run | Yrd Mat Mat Min Exi Min Robot Analysis Total . | . . . . . . Derelict Logs Recovered 1 | . . . 1 . . Drone Launches . | . . . . . . Drone Recoveries . | . . . . . . Exploration | -11 -10 -9 -9 -9 -8 ------------- Run | Yrd Mat Mat Min Exi Min Turns Passed 2102 | 54 319 788 273 655 13 Spaces Moved 957 | 30 164 285 163 307 8 Core 2 | 2 . . . . . Treads 955 | 28 164 285 163 307 8 Legs . | . . . . . . Wheels . | . . . . . . Hover . | . . . . . . Flight . | . . . . . . Fastest Speed 50 | 50 160 160 160 160 160 Average Speed 159 | 152 160 160 160 160 160 Slowest Speed 240 | 160 160 160 160 240 160 Overloaded Moves . | . . . . . . Propulsion Burnouts . | . . . . . . Robots Hopped . | . . . . . . Cave-ins Triggered . | . . . . . . Exploration Rate (%) 31 | 3 28 38 52 63 4 Regions Visited 5 Branch Regions 3 Pre-discovered Areas 1 | . . . 1 . . Known Exits Taken . | . . . . . . Unknown Exits Taken 5 | 1 1 1 1 1 . Scrap Searched . | . . . . . . Spaces Dug . | . . . . . . Terrain Destroyed 28 | . . . . 28 . Melee . | . . . . . . Projectile . | . . . . . . AOE 28 | . . . . 28 . Terrain Rammed . | . . . . . . Walls Destroyed . | . . . . . . Machines Disabled . | . . . . . . Actions | -11 -10 -9 -9 -9 -8 --------- Run | Yrd Mat Mat Min Exi Min Total 1301 | 35 195 463 172 428 8 Wait 147 | . 3 56 4 84 . Move 952 | 29 163 284 162 306 8 Hop . | . . . . . . Pick Up 17 | . 3 12 1 1 . Fast Attach 26 | 6 11 8 . 1 . Attach 7 | . . 1 . 6 . Detach 4 | . 1 3 . . . Swap 10 | . 1 5 1 3 . Drop 15 | . . 12 2 1 . Fire 120 | . 12 80 2 26 . Melee . | . . . . . . Ram . | . . . . . . Kick . | . . . . . . Crush 3 | . 1 2 . . . Escape Stasis . | . . . . . . Rewire . | . . . . . . Trap . | . . . . . . Miscellaneous . | . . . . . . Route ------- -11/Scrapyard -10/Materials (discovered 2 exits: *Mat / [*Min]) -9/Materials -9/Mines -9/Exiles -8/Mines History --------- Turn | Location | Event 23 | -11/Scrapyard | Discovered new exit (range 15) 55 | -11/Scrapyard | Entered Materials 70 | -10/Materials | Discovered new exit (range 16) 303 | -10/Materials | Build established: Mutant 370 | -10/Materials | Discovered new exit (range 3) 374 | -10/Materials | Entered another Materials area 374 | -9/Materials | Evolved 2 slots: Propulsion x2 828 | -9/Materials | Build established: Scavenger-Mutant 1134 | -9/Materials | Discovered new exit (range 16) 1162 | -9/Materials | Entered Mines 1229 | -9/Mines | Learned location of Zion (-7) 1355 | -9/Mines | Received a Rocket Launcher from a helpful Derelict 1428 | -9/Mines | Deemed a non-threat by the Exiles lab entrance 1428 | -9/Mines | Discovered new exit (range 5) 1435 | -9/Mines | Entered Exiles 1474 | -9/Exiles | Met 8R-AWN 1501 | -9/Exiles | Met EX-HEX 1554 | -9/Exiles | Met EX-BIN 1573 | -9/Exiles | Aligned with FarCom system 1575 | -9/Exiles | Given EX-Vault access code 1611 | -9/Exiles | Opened EX-Vault 1620 | -9/Exiles | Found Modified TNC 1653 | -9/Exiles | Warned to stay clear of 0b10 Research branches 1678 | -9/Exiles | Exiles lab attacked by MAIN.C 1845 | -9/Exiles | Discovered new exit (range 10) 2012 | -9/Exiles | Core integrity fell below 50% 2024 | -9/Exiles | Core integrity fell below 20% 2049 | -9/Exiles | Destroyed 20 combat bots 2060 | -9/Exiles | Lost 11 parts (1p4n1u5w) 2090 | -9/Exiles | Left Exiles lab with Modified TNC 2090 | -9/Exiles | Entered Mines 2103 | -8/Mines | Destroyed by G-47 Trooper with Particle Gun Last Messages --------------- 02016_ The unstable cave ceiling collapses. 02016_ H-55 Commando destroyed. 02026_ Slug penetrates P-60 Hacker. 02026_ Machine disabled. 02028_ Slug penetrates P-60 Hacker. 02028_ P-60 Hacker destroyed. [Achievement: Killing Spree] 02029_ Gauss Rifle destroyed. 02033_ The unstable cave ceiling collapses. 02034_ Acquired 7 matter. 02039_ Acquired 19 matter. 02041_ The unstable cave ceiling collapses. 02041_ Aluminum Leg crushed. 02049_ TIZTD,ZP16L,BOGOMB OHOK1 02066_ Lgt. Treads destroyed. 02084_ System corrupted: Heat flow error (+245). LOCATION=UNKNOWN GOAL=ESCAPE 02090_ Receiving FarCom transmissions... 02091_ DK-RAY destroyed. Map ----- +----------------------------------------------------+ | ?????????????????????????????????????????????????? | | ?????????????????????????????????????????????????? | | ?????????????????????????????????????????????????? | | ?????????????????????????????????????????????????? | | ?????????????????????????????????????????????????? | | ?????????????????????????????????????????????????? | | ?????????????????????????????????????????????????? | | ?????????????????????????????????????????????????? | | ?????????????????????????????????????????????????? | | ?????????????????????????????????????????????????? | | ?????????????????????????????????????????????????? | | ?????????????????????????????????????????????????? | | ?????????????????????????????????????????????????? | | ?????????????????????????????????????????????????? | | ?????????????????????????????????????????????????? | | ?????????????????????????????????????????????????? | | ?????????????????????????????????????????????????? | | ?????????????????????????????????????????????????? | | ?????????????????????????????????????????????????? | | ?????????????????????????????????????????????????? | | ?????????????????????????????????????????????????? | | ??????????????????####???????????????????????????? | | ??????????????????? #?????????????? ?????????? | | ???????????????????#g#?????????? ??????????? | | ???????????????????# ####### #?????????????? | | ???????????????????#bg @ #??????????????? | | ?????????????????### ###### #???????????????? | | ?????????????????# #???? #???????????????? | | ?????????????????# #?????? #???????????????? | | ?????????????????# %* #????????#???????????????? | | ?????????????????# #????????????????????????? | | ?????????????????# #????????????g???????????? | | ?????????????????# #????????????g???????????? | | ?????????????????########????????????????????????? | | ?????????????????????????????????????g???????????? | | ?????????????????????????????????????????????????? | | ?????????????????????????????????????????????????? | | ?????????????????????????????????????????????????? | | ?????????????????????????????????????????????????? | | ?????????????????????????????????????????????????? | | ?????????????????????????????????????????????????? | | ?????????????????????????????????????????????????? | | ?????????????????????????????????????????????????? | | ?????????????????????????????????????????????????? | | ?????????????????????????????????????????????????? | | ?????????????????????????????????????????????????? | | ?????????????????????????????????????????????????? | | ?????????????????????????????????????????????????? | | ?????????????????????????????????????????????????? | | ?????????????????????????????????????????????????? | +----------------------------------------------------+ Best States ------------- Heat Dissipation 38 Energy Generation 14 Energy Capacity 280 Matter Stores 300 Matter Capacity 300 Sight Range 16 Terrain Scan Density 10 Armor Coverage 150 Evasion (%) 40 Recoil Reduction 4 Item Schematics ----------------- None Robot Schematics ------------------ None Fabricated ------------ Nothing Alien Tech Used ----------------- None Achievements -------------- Killing Spree Challenges ------------ None Game ------ Seed WaveTargetActivator Manual? 0 Play Time 00:29:47 Cumulative 46.1 hours Start 2025.04.10 @ 14:38:35 End 2025.04.13 @ 19:52:07 Sessions 3 Manual Loads 0 Difficulty Rogue Special Mode None Game No. 31 Rogue 31 Adventurer 0 Explorer 0 Win Type - Total 0 Types 0/0/0/0/0/0/0/0/0 Lore% 19 Gallery% 29 Achievement% 33 Wizard Run 0 Options --------- Layout 1 ASCII 0 Keyboard 0 Movement Mouse Keybinds 0 Fullscreen 1 Font 24/Smallcaps Map View 50x35 Zoom Use 0% Tactical HUD 1 Map Filters NONE Filters NONE Steam 1 RUN: f5e4e4fe-598d-41ef-b826-786abc4475b2